Cogmind - Beta 12 @@@ ROGUE MODE // 2023.04.09 @ 19:36:30 Player: Mr Goldstein Result: Self-destructed Performance ------------- Evolutions (0) 0 Regions Visited (4) 800 Robots Destroyed (0) 0 Value Destroyed (0) 0 Prototype IDs (0) 0 Alien Tech Used (0) 0 Bonus (0) 0 TOTAL SCORE: 800 Bonus ------- None Cogmind --------- Core Integrity 205/250 Matter 222/300 Energy 99/100 System Corruption 0% Temperature Cool (0) Movement Core (50) Location -9/Mines Parts ------- > --- POWER (1) -------- (None) > --- PROPULSION (2) --- (None) > --- UTILITY (2) ------ Advanced Weight Redist. System > --- WEAPON (2) ------- (None) > --- INVENTORY (5) ---- Visual Processing Unit Visual Processing Unit Visual Processing Unit Advanced Visual Processing Unit Improved Terrain Scan Processor Peak State ------------ > --- POWER ------------ (None) > --- PROPULSION ------- (None) > --- UTILITY ---------- Advanced Weight Redist. System Visual Processing Unit > --- WEAPON ----------- (None) > --- INVENTORY -------- Visual Processing Unit Visual Processing Unit Visual Processing Unit Advanced Visual Processing Unit Improved Terrain Scan Processor [Rating: 6] Favorites ----------- Power None Propulsion None Utility Visual Processing Unit Device Advanced Weight Redist. System Storage Humpback Processor Visual Processing Unit Weapon None Build | -11 -10 -10 -10 -9 ------- Run | Jun Mat Min Exi Min Slots Evolved . | . . . . . Power . | . . . . . Propulsion . | . . . . . Utility . | . . . . . Weapon . | . . . . . Parts Attached 4 | . 1 1 2 . Power . | . . . . . Engine . | . . . . . Core . | . . . . . Reactor . | . . . . . Propulsion . | . . . . . Treads . | . . . . . Leg . | . . . . . Wheel . | . . . . . Hover . | . . . . . Flight . | . . . . . Utility 4 | . 1 1 2 . Device 2 | . . 1 1 . Storage 1 | . . . 1 . Processor 1 | . 1 . . . Hackware . | . . . . . Protection . | . . . . . Artifact . | . . . . . Weapon . | . . . . . Energy Gun . | . . . . . Energy Cannon . | . . . . . Ballistic Gun . | . . . . . Ballistic Cannon . | . . . . . Launcher . | . . . . . Special Weapon . | . . . . . Impact Weapon . | . . . . . Slashing Weapon . | . . . . . Piercing Weapon . | . . . . . Special Melee Weapon . | . . . . . Unidentified Prototypes . | . . . . . Parts Lost . | . . . . . Power . | . . . . . Propulsion . | . . . . . Utility . | . . . . . Weapon . | . . . . . Highest Loss Streak . | . . . . . To Critical Strikes . | . . . . . Average Slot Usage (%) 22 | . 7 18 26 14 Device 10 | . . 4 14 14 Processor 11 | . 7 14 12 . Naked Turns 18 | . 17 . 1 . Heaviest Build . | . . . . . Greatest Support 12 | 3 3 12 12 3 Greatest Overweight (x) . | . . . . . Average Overweight (x) . | . . . . . Largest Inventory Capacity 35 | 5 5 5 35 5 Average Capacity 5 | 5 5 5 5 5 Most Carried 5 | . 3 5 5 5 Average Carried 4 | . 1 3 5 5 Final Capacity 5 | 5 5 5 5 5 Final Carried 5 | . 3 5 5 5 Class Distribution -------------------- 100% | Mutant Dominant Class ---------------- Mutant | -10/Materials Mutant | -10/Mines Mutant | -10/Exiles Mutant | -9/Mines Resources | -11 -10 -10 -10 -9 ----------- Run | Jun Mat Min Exi Min Matter Collected 162 | 133 . . . 29 Remotely . | . . . . . Salvage Created . | . . . . . Parts . | . . . . . Haulers Intercepted . | . . . . . Recyclers Shooed . | . . . . . Parts Field Recycled . | . . . . . Retrieved Matter . | . . . . . Parts Self-Destructed . | . . . . . Prevented . | . . . . . Kills | -11 -10 -10 -10 -9 ------- Run | Jun Mat Min Exi Min Combat Hostiles Destroyed . | . . . . . Classes Destroyed . | . . . . . Best Kill Streak . | . . . . . Combat Bots Only . | . . . . . Max Kills in Single Turn . | . . . . . Gunslinging . | . . . . . Exploded . | . . . . . Melee . | . . . . . Uniques/NPCs Destroyed . | . . . . . Combat | -11 -10 -10 -10 -9 -------- Run | Jun Mat Min Exi Min Damage Taken 45 | . 33 12 . . Core 45 | . 33 12 . . Absorbed by Shields . | . . . . . Core Remaining (%) 100 | 100 . . . . Volleys Fired . | . . . . . Largest . | . . . . . Hottest . | . . . . . Shots Fired . | . . . . . Gun . | . . . . . Cannon . | . . . . . Launcher . | . . . . . Special . | . . . . . Kinetic . | . . . . . Thermal . | . . . . . Explosive . | . . . . . Electromagnetic . | . . . . . Robot Hit Streak . | . . . . . Robot Miss Streak . | . . . . . Penetration Max . | . . . . . Secondary Targets . | . . . . . Shots Hit Robots . | . . . . . Core Hits . | . . . . . Critical Kills . | . . . . . Critical Parts Destroyed . | . . . . . Critical Strikes . | . . . . . Melee Attacks . | . . . . . Impact . | . . . . . Slashing . | . . . . . Piercing . | . . . . . Sneak Attacks . | . . . . . Combat Hostiles . | . . . . . Follow-up Attacks . | . . . . . Damage Inflicted . | . . . . . Guns . | . . . . . Cannons . | . . . . . Explosions . | . . . . . Melee . | . . . . . Ramming . | . . . . . Kinetic . | . . . . . Thermal . | . . . . . Explosive . | . . . . . Electromagnetic . | . . . . . Impact . | . . . . . Slashing . | . . . . . Piercing . | . . . . . Highest Corruption . | . . . . . Average Corruption . | . . . . . Corruption Purged . | . . . . . Corruption Blocked . | . . . . . Overload Shots . | . . . . . Overflow Damage . | . . . . . Projectiles . | . . . . . Explosions . | . . . . . Melee . | . . . . . Knockbacks . | . . . . . Impact . | . . . . . Kinetic . | . . . . . Secondary . | . . . . . Self-Inflicted Damage . | . . . . . Shots . | . . . . . Rammed . | . . . . . Targets Rammed . | . . . . . Kicked . | . . . . . Crushed . | . . . . . Highest Temperature . | . . . . . Average Temperature . | . . . . . Received Heat Transfer 12 | . 6 6 . . Siege Activations . | . . . . . Robots Corrupted . | . . . . . Combat Hostiles . | . . . . . Parts Fried . | . . . . . Impact Corruptions . | . . . . . Robots Melted . | . . . . . Combat Hostiles . | . . . . . Parts Melted . | . . . . . Heat Transferred . | . . . . . Parts Sabotaged . | . . . . . Parts Stolen . | . . . . . Parts Stripped . | . . . . . Power Chain Reactions . | . . . . . Missiles Intercepted . | . . . . . Alert | -11 -10 -10 -10 -9 ------- Run | Jun Mat Min Exi Min Peak Influence 52 | . 52 19 . . Initial 19 | . . 19 . . Average 14 | . 14 19 . . Maximum Alert Level . | . . . . . Low Security (%) 100 | 100 100 100 . 100 Level 1 . | . . . . . Level 2 . | . . . . . Level 3 . | . . . . . Level 4 . | . . . . . Level 5 . | . . . . . High Security . | . . . . . Max Security . | . . . . . Squads Dispatched 2 | . 1 1 . . Investigation 1 | . . 1 . . Extermination . | . . . . . Reinforcement 1 | . 1 . . . Assault . | . . . . . Garrison . | . . . . . Intercept . | . . . . . Searches Triggered . | . . . . . Construction Impeded . | . . . . . Haulers Reinforced . | . . . . . Active Scanning Responses . | . . . . . Cargo Convoy Interrupts . | . . . . . Stealth | -11 -10 -10 -10 -9 --------- Run | Jun Mat Min Exi Min Distress Signals 1 | . 1 . . . Communications Jammed . | . . . . . Distress Signals . | . . . . . Times Spotted 9 | . 8 1 . . Peak Tracking Total 7 | . 7 2 . . Tactical Retreats . | . . . . . Traps | -11 -10 -10 -10 -9 ------- Run | Jun Mat Min Exi Min Traps Triggered . | . . . . . Indirectly . | . . . . . Trap Hack Attempts . | . . . . . Triggered . | . . . . . Disarmed . | . . . . . Reprogrammed . | . . . . . Reused . | . . . . . Traps Extracted . | . . . . . Installed . | . . . . . Triggered . | . . . . . Machines | -11 -10 -10 -10 -9 ---------- Run | Jun Mat Min Exi Min Machines Disabled . | . . . . . Max in Single Turn . | . . . . . Machines Repaired . | . . . . . Machines Sabotaged . | . . . . . Overloaded Fab Kills . | . . . . . Hacking | -11 -10 -10 -10 -9 --------- Run | Jun Mat Min Exi Min Machines Accessed 6 | . 1 1 4 . Terminals 1 | . 1 . . . Fabricators . | . . . . . Repair Stations . | . . . . . Recycling Units . | . . . . . Scanalyzers . | . . . . . Garrison Access . | . . . . . Total Hacks 9 | . 4 1 4 . Successful 6 | . 1 1 4 . Failed 3 | . 3 . . . Catastrophic 1 | . 1 . . . Database Lockouts . | . . . . . Manual 1 | . . . 1 . Terminals 4 | . 4 . . . Fabricators . | . . . . . Repair Stations . | . . . . . Recycling Units . | . . . . . Scanalyzers . | . . . . . Garrison Access . | . . . . . Terminal Hacks 6 | . 1 1 4 . Record 4 | . . . 4 . Open Door 1 | . . 1 . . Branch Access Points 1 | . 1 . . . Fabricator Hacks . | . . . . . Repair Station Hacks . | . . . . . Recycling Unit Hacks . | . . . . . Scanalyzer . | . . . . . Garrison Access Hacks . | . . . . . Unauthorized Hacks . | . . . . . Terminals . | . . . . . Fabricators . | . . . . . Repair Stations . | . . . . . Recycling Units . | . . . . . Scanalyzers . | . . . . . Garrison Access . | . . . . . Data Cores Recovered . | . . . . . Used . | . . . . . Hacking Detections . | . . . . . Full Trace Events . | . . . . . Feedback Events . | . . . . . Feedback Blocked . | . . . . . Robot Schematics Acquired . | . . . . . Robots Built . | . . . . . Authchips . | . . . . . Time . | . . . . . Total Robot Build Rating . | . . . . . Part Schematics Acquired . | . . . . . Parts Built . | . . . . . Authchips . | . . . . . Time . | . . . . . Total Part Build Rating . | . . . . . Parts Repaired . | . . . . . Time . | . . . . . Parts Recycled . | . . . . . Recycled Matter . | . . . . . Retrieved Matter . | . . . . . Retrieved Components . | . . . . . Parts Scanalyzed . | . . . . . Part Schematics Acquired . | . . . . . Parts Damaged . | . . . . . Bothacking | -11 -10 -10 -10 -9 ------------ Run | Jun Mat Min Exi Min Used RIF Installer . | . . . . . Robots Hacked . | . . . . . Non-combat . | . . . . . Combat . | . . . . . Robot Hacks Applied . | . . . . . Relay Couplers Released . | . . . . . Fabnet Peak Effective % . | . . . . . Robots Rewired . | . . . . . Allies Hacked . | . . . . . Hacks Repelled . | . . . . . Allies | -11 -10 -10 -10 -9 -------- Run | Jun Mat Min Exi Min Total Allies . | . . . . . Largest Group . | . . . . . Highest-Rated Group . | . . . . . Highest-Rated Ally . | . . . . . Total Orders . | . . . . . Ally Attacks . | . . . . . Total Damage . | . . . . . Kills . | . . . . . Allies Corrupted . | . . . . . Allies Melted . | . . . . . Intel | -11 -10 -10 -10 -9 ------- Run | Jun Mat Min Exi Min Robot Analysis Total . | . . . . . Derelict Logs Recovered 2 | . . 1 . 1 Drone Launches . | . . . . . Drone Recoveries . | . . . . . Exploration | -11 -10 -10 -10 -9 ------------- Run | Jun Mat Min Exi Min Turns Passed 507 | 12 38 128 298 31 Spaces Moved 950 | 25 66 249 549 61 Core 950 | 25 66 249 549 61 Treads . | . . . . . Legs . | . . . . . Wheels . | . . . . . Hover . | . . . . . Flight . | . . . . . Fastest Speed 50 | 50 50 50 50 50 Average Speed 50 | 50 50 50 50 50 Slowest Speed 50 | 50 50 50 50 50 Overloaded Moves . | . . . . . Propulsion Burnouts . | . . . . . Robots Hopped . | . . . . . Cave-ins Triggered . | . . . . . Exploration Rate (%) 41 | 3 26 47 95 34 Regions Visited 4 Branch Regions 3 Pre-discovered Areas . | . . . . . Known Exits Taken 1 | . 1 . . . Unknown Exits Taken 3 | 1 . 1 1 . Scrap Searched 2 | . . 1 . 1 Spaces Dug . | . . . . . Terrain Destroyed . | . . . . . Melee . | . . . . . Projectile . | . . . . . AOE . | . . . . . Terrain Rammed . | . . . . . Walls Destroyed . | . . . . . Machines Disabled . | . . . . . Actions | -11 -10 -10 -10 -9 --------- Run | Jun Mat Min Exi Min Total 978 | 24 70 251 572 61 Wait 19 | . . . 19 . Move 946 | 24 65 248 548 61 Hop . | . . . . . Pick Up 6 | . 4 2 . . Fast Attach 3 | . . 1 2 . Attach 1 | . 1 . . . Detach . | . . . . . Swap . | . . . . . Drop 3 | . . . 3 . Fire . | . . . . . Melee . | . . . . . Ram . | . . . . . Kick . | . . . . . Crush . | . . . . . Escape Stasis . | . . . . . Rewire . | . . . . . Trap . | . . . . . Miscellaneous . | . . . . . Route ------- -11/Junkyard -10/Materials -10/Mines -10/Exiles (discovered 2 exits: [*Min x2]) -9/Mines (discovered 1 exit: Mat) History --------- Turn | Location | Event 4 | -11/Junkyard | Discovered new exit (range 16) 13 | -11/Junkyard | Entered Materials 17 | -10/Materials | Identified exit to Mines 51 | -10/Materials | Entered Mines 58 | -10/Mines | Met a Derelict bent on vengeance 81 | -10/Mines | Received a Rocket Launcher from a helpful Derelict 132 | -10/Mines | Met a Derelict shopkeep closing up shop 148 | -10/Mines | Learned Materials emergency access door positions 176 | -10/Mines | Deemed a non-threat by the Exiles lab entrance 176 | -10/Mines | Discovered new exit (range 5) 179 | -10/Mines | Entered Exiles 179 | -10/Exiles | Found Exiles lab abandoned 186 | -10/Exiles | Discovered new exit (range 17) 311 | -10/Exiles | Build established: Mutant 454 | -10/Exiles | Discovered new exit (range 10) 477 | -10/Exiles | Entered Mines 502 | -9/Mines | Identified exit to Materials 508 | -9/Mines | Self-destructed Last Messages --------------- >>Record "BIN-BYE" To the spacelab! 00291_ Connecting with EX-Message Board... >>Record "MSG999999-FU" MAIN.C you're pretty crappy as far as evil overlords go. Imprinter is probably going to wreck your life and you're too stupid to see it coming. 00440_ Discarded Visual Processing Unit. 00441_ Dropped Adv. Weight Redist. System. 00441_ Acquired Humpback. 00443_ Dropped Humpback. 00444_ Acquired Adv. Weight Redist. System. 00454_ EXIT=FOUND LOCATION=UNKNOWN GOAL=ESCAPE 00496_ T-07 Excavator is excavating. 00502_ Acquired derelict log, extracted data. 00507_ Searching scrap... 00507_ Found Med. Armor Plating. 00507_ Found 29 Matter. 00508_ Acquired 29 matter. Map ----- +----------------------------------------------------+ | ???????????????????????????## # | | ???????????????????????????# | | ???????????????????????????# | | ???????????????????????????# | | ????????????????????????????# | | ?????????????????????????????# | | ??????????????????????????????# | | ??????????????????????????????# | | ????????????????????? ????????## | | ???????????????????? ???????## | | ????????????????????# ??????## | | ???????????????# ???# ?????## | | ???????????????# ??## ?????# | | ???????????????# ## ?????# | | ???#?????????### # ?????# | | ???# ??????### ?????## | | ???# ?????## #????## | | ???# #????? ##?### | | ??? ???? ### # | | ???? #???? # | | ????# #????????# ## | | ????# ##??????## ##? | | ????# ##??????# #?? | | ????# #??????## ## ##?? | | ????# #???????## #####??? | | ?????# @#??#####??## #??????? | | ?????### #??# ##??# #??????? | | ???????#!#??# #??# ##??????? | | ???????# #??# #### ##???????? | | ???????# #??# #????????? | | ???????# #??# #????????? | | ???????# #??# ######????????? | | ???????# #?## ##???????????? | | ?????### ### #???????????? | | ?????# #??????????? | | ?????# #??????????? | | ?????### # # #??????????? | | ???????# ## ### ####??????????? | | ???????# #####?# #?????????????? | | ???????# #?????# #?????????????? | | ???????# #????? #?????????????? | | ??????? #????? #?????????????? | | ??????? ##????? ?????????????? | | ??????? ??????? ?????????????? | | ??????? ??????? #????????????? | | ??????? ???????? ##????????????? | | ??????? ????????? ??????????????? | | ??????? ????????????????????????? | | ??????? ????????????????????????? | | ??????? ????????????????????????? | +----------------------------------------------------+ Best States ------------- Heat Dissipation 25 Energy Generation 5 Energy Capacity 100 Matter Stores 233 Matter Capacity 300 Sight Range 18 Terrain Scan Density 10 Additional Mass Support 9 Evasion (%) 50 Item Schematics ----------------- None Robot Schematics ------------------ None Fabricated ------------ Nothing Alien Tech Used ----------------- None Achievements -------------- None Challenges ------------ None Game ------ Seed PulseTerrainComputer Manual? 0 Play Time 00:05:36 Cumulative 87.2 hours Start 2023.04.09 @ 19:31:06 End 2023.04.09 @ 19:36:30 Sessions 1 Manual Loads 0 Difficulty Rogue Special Mode None Game No. 112 Rogue 112 Adventurer 0 Explorer 0 Win Type - Total 2 Types 2/0/0/0/0/0/0/0/0 Lore% 53 Gallery% 54 Achievement% 45 Wizard Run 0 Options --------- ASCII 0 Keyboard 0 Movement Arrows Keybinds 0 Fullscreen 1 Font 12/Smallcaps Map View 83x54 Tactical HUD 1 Map Filters NONE Filters NONE Steam 1 RUN: aeb65cbf-0f9e-4b0c-9de1-39fbfef02e34